bitfinex/quotes_BTCUSD_20240627
["timestamp","ask_amount","ask_price","bid_price","bid_amount"]
[1719486057756,0.918737,61219.0,61218.0,0.45359271]
[1719486058202,0.918737,61219.0,61218.0,0.44338902]
[1719486058522,1.245432,61219.0,61218.0,0.21758902]
[1719486060574,0.918737,61219.0,61218.0,0.01758902]
[1719486060979,0.918737,61219.0,61218.0,0.63839271]
[1719486060980,0.102,61219.0,61218.0,0.63839271]
[1719486061352,0.002,61219.0,61218.0,0.64839271]
[1719486061556,0.102,61219.0,61218.0,0.64839271]
[1719486062432,0.265347,61219.0,61218.0,0.63839271]
[1719486062646,0.592042,61219.0,61218.0,0.63839271]
[1719486063076,0.918737,61219.0,61218.0,0.63839271]
[1719486064033,1.245432,61219.0,61218.0,0.01851302]
[1719486064242,1.245432,61219.0,61218.0,0.22871671]
[1719486064463,1.245432,61219.0,61218.0,0.21851302]
[1719486064618,1.859233,61219.0,61218.0,0.21851302]
[1719486064822,1.859233,61219.0,61218.0,0.010924]
[1719486065071,1.859233,61219.0,61218.0,0.210924]
[1719486065314,1.82922,61219.0,61218.0,0.010924]
[1719486065711,1.82922,61219.0,61218.0,0.01849127]
[1719486065960,1.87486533,61219.0,61218.0,0.21849127]
[1719486066163,1.87486533,61219.0,61218.0,0.01849127]
[1719486066369,2.00722,61219.0,61218.0,0.01849127]
[1719486066575,2.00722,61219.0,61218.0,0.010924]
[1719486067615,2.00722,61219.0,61218.0,0.22112769]
[1719486067616,1.82922,61219.0,61218.0,0.22112769]
[1719486068026,1.695213,61219.0,61218.0,0.22112769]
[1719486068647,1.695213,61219.0,61218.0,0.210924]
[1719486069083,1.650562,61219.0,61218.0,0.22112769]
[1719486069459,1.650562,61219.0,61218.0,0.425624]
[1719486069664,1.364766,61219.0,61218.0,0.210924]
[1719486069816,1.364766,61219.0,61218.0,0.21849265]
[1719486070985,1.364766,61219.0,61218.0,0.01849265]
[1719486071387,1.364766,61219.0,61218.0,0.010924]
[1719486072135,1.553066,61219.0,61218.0,0.010924]
[1719486072337,1.791866,61219.0,61218.0,0.010924]
[1719486072683,1.95419971,61219.0,61218.0,0.010924]
[1719486073252,2.98483671,61219.0,61218.0,0.010924]
[1719486073508,2.98483671,61219.0,61218.0,0.00914962]
[1719486073509,3.70157069,61219.0,61218.0,0.00914962]
[1719486074411,3.70057069,61219.0,61218.0,0.00514962]
[1719486074786,3.71357069,61219.0,61218.0,0.000924]
[1719486074989,3.72657069,61219.0,61218.0,0.001924]
[1719486075515,3.56423698,61219.0,61218.0,0.001924]
[1719486075719,3.13523698,61219.0,61218.0,0.000924]
[1719486075930,3.13523698,61219.0,61218.0,0.001924]
[1719486076136,3.14623698,61219.0,61218.0,0.001924]
[1719486076546,3.05219598,61219.0,61218.0,0.001924]
[1719486078135,3.04119598,61219.0,61218.0,0.000924]
[1719486078292,3.03019598,61219.0,61218.0,0.000924]
[1719486078720,3.04119598,61219.0,61218.0,0.000924]
[1719486079220,3.03019598,61219.0,61218.0,0.000924]
[1719486079619,3.03319598,61219.0,61218.0,0.000924]
[1719486081274,2.870857,61219.0,61218.0,0.000924]
[1719486081476,2.544162,61219.0,61218.0,0.000924]
[1719486081681,2.150432,61219.0,61218.0,0.000924]
[1719486083728,2.47510469,61219.0,61218.0,0.000924]
[1719486083924,3.21649969,61219.0,61218.0,0.000924]
[1719486086207,3.54319469,61219.0,61218.0,0.000924]
[1719486086610,3.59225123,61219.0,61218.0,0.000924]
[1719486087348,3.54319469,61219.0,61218.0,0.000924]
[1719486088020,5.69539269,61219.0,61218.0,0.000924]
[1719486088229,5.46765898,61219.0,61218.0,0.000924]
[1719486088433,3.90250298,61219.0,61218.0,0.000924]
[1719486090523,3.89950298,61219.0,61218.0,0.000924]
[1719486091132,3.89650298,61219.0,61218.0,0.000924]
[1719486091389,3.99632538,61219.0,61218.0,0.000924]
[1719486091579,4.00332538,61219.0,61218.0,0.000924]
[1719486091983,3.99632538,61219.0,61218.0,0.000924]
[1719486092190,4.33002038,61219.0,61218.0,0.000924]
[1719486092375,4.5119198,61219.0,61218.0,0.000924]
[1719486092675,4.34695533,61219.0,61218.0,0.000924]
[1719486092828,4.33995533,61219.0,61218.0,0.000924]
[1719486093235,4.34695533,61219.0,61218.0,0.000924]
[1719486094238,4.39601187,61219.0,61218.0,0.000924]
[1719486094439,4.40301187,61219.0,61218.0,0.000924]
[1719486095046,4.40301116,61219.0,61218.0,0.000924]
[1719486095450,4.38607692,61219.0,61218.0,0.000924]
[1719486095692,4.40301116,61219.0,61218.0,0.000924]
[1719486095896,4.40385116,61219.0,61218.0,0.000924]
[1719486097019,4.70207116,61219.0,61218.0,0.000924]
[1719486097220,2.198043,61215.0,61214.0,0.000924]
[1719486097486,7.99337323,61215.0,61214.0,0.000924]
[1719486097981,8.15818964,61215.0,61214.0,0.000924]
[1719486098225,8.17511868,61215.0,61214.0,0.000924]
[1719486098442,8.01030615,61215.0,61214.0,0.000924]
[1719486098654,8.17511868,61215.0,61214.0,0.000924]
[1719486098871,1.470492,61204.0,61203.0,0.009229]
[1719486099085,6.396893,61204.0,61203.0,0.01692576]
[1719486099307,1.809292,61204.0,61203.0,0.01692576]
[1719486099522,1.809292,61204.0,61203.0,0.009229]
[1719486100165,6.396893,61204.0,61203.0,0.009229]
[1719486100811,6.398893,61204.0,61203.0,0.009229]
[1719486102186,6.399893,61204.0,61203.0,0.009229]
[1719486102569,6.56223198,61204.0,61203.0,0.009229]
[1719486103402,6.72456569,61204.0,61203.0,0.009229]
[1719486104125,6.56223198,61204.0,61203.0,0.009229]
[1719486109461,1.97463098,61204.0,61203.0,0.009229]
[1719486109690,6.56223198,61204.0,61203.0,0.009229]
[1719486110384,6.58404877,61204.0,61203.0,0.009229]
[1719486116795,6.44084877,61204.0,61203.0,0.009229]
[1719486116998,6.60318248,61204.0,61203.0,0.009229]
[1719486117619,6.44084877,61204.0,61203.0,0.009229]
[1719486118974,6.27746077,61204.0,61203.0,0.009229]
[1719486119173,6.44084877,61204.0,61203.0,0.009229]
[1719486125390,6.94802477,61204.0,61203.0,0.009229]
[1719486125786,6.96494996,61204.0,61203.0,0.009229]
[1719486126203,6.96394967,61204.0,61203.0,0.009229]
[1719486127014,6.97394967,61204.0,61203.0,0.009229]
[1719486127217,7.02100621,61204.0,61203.0,0.009229]
[1719486127439,7.01100621,61204.0,61203.0,0.009229]
[1719486127819,7.02100621,61204.0,61203.0,0.009229]
[1719486128220,7.03200621,61204.0,61203.0,0.009229]
[1719486128445,7.01508131,61204.0,61203.0,0.009229]
[1719486128627,7.02100957,61204.0,61203.0,0.009229]
[1719486128999,7.03200957,61204.0,61203.0,0.009229]
[1719486129410,7.01508131,61204.0,61203.0,0.009229]
[1719486129611,7.03201079,61204.0,61203.0,0.009229]
[1719486129912,6.96488796,61204.0,61203.0,0.009229]
[1719486130115,7.15318796,61204.0,61203.0,0.009229]
[1719486130318,7.31809567,61204.0,61203.0,0.009229]
[1719486130638,7.2048185,61204.0,61203.0,0.009229]
[1719486130866,7.2048185,61204.0,61197.0,0.1192935]
[1719486130867,1.650536,61198.0,61197.0,0.0216935]
[1719486131081,1.650536,61198.0,61189.0,0.009229]
[1719486131082,0.817125,61190.0,61189.0,0.009229]
[1719486131283,4.429457,61190.0,61189.0,0.009229]
[1719486131489,4.141803,61190.0,61189.0,0.009229]
[1719486131717,3.142723,61190.0,61189.0,0.009229]
[1719486132722,2.75317,61190.0,61189.0,0.110229]
[1719486132872,2.648008,61190.0,61189.0,0.110229]
[1719486133092,2.64970946,61190.0,61189.0,0.110229]
[1719486133328,2.57754446,61190.0,61189.0,0.110229]
[1719486133538,2.50000846,61190.0,61189.0,0.110229]
[1719486134591,2.50000846,61190.0,61189.0,0.189829]
[1719486134928,2.45306746,61190.0,61189.0,0.009229]
[1719486135131,2.45306746,61190.0,61189.0,0.192429]
[1719486135541,1.93360646,61190.0,61189.0,0.40263269]
[1719486135746,1.57291146,61190.0,61189.0,0.40263269]
[1719486136688,1.57291146,61190.0,61189.0,0.192429]
[1719486136898,1.35227646,61190.0,61189.0,0.392429]
[1719486137191,2.43316646,61190.0,61189.0,0.192429]
[1719486137928,2.4587959,61190.0,61189.0,0.192429]
[1719486138354,2.62112961,61190.0,61189.0,0.192429]
[1719486138565,2.4587959,61190.0,61189.0,0.192429]
[1719486139048,2.4587959,61190.0,61189.0,0.392429]
[1719486139619,2.3584969,61190.0,61189.0,0.40263269]
[1719486139820,2.3584969,61190.0,61189.0,0.392429]
[1719486140202,2.3584969,61190.0,61189.0,0.40263269]
[1719486140410,2.3584969,61190.0,61189.0,0.192429]
[1719486140608,2.3584969,61190.0,61189.0,0.40263269]
[1719486140857,2.3584969,61190.0,61189.0,0.392429]
[1719486141023,2.3584969,61190.0,61189.0,0.192429]
[1719486141599,2.37961428,61190.0,61189.0,0.192429]
[1719486142006,1.39902328,61190.0,61189.0,0.192429]
[1719486142219,2.82246628,61190.0,61189.0,0.192429]
[1719486142427,2.67711728,61190.0,61189.0,0.192429]
[1719486142863,2.50033328,61190.0,61189.0,0.192429]
[1719486143089,2.38141328,61190.0,61189.0,0.192429]
[1719486143498,2.38141328,61190.0,61189.0,0.009229]
[1719486143702,2.38141328,61190.0,61189.0,0.189429]
[1719486144341,2.38141328,61190.0,61189.0,0.39963269]
[1719486144550,1.32560128,61190.0,61189.0,0.44144176]
[1719486144755,0.97657328,61190.0,61189.0,0.39963269]
[1719486144993,1.09207128,61190.0,61189.0,0.389429]
[1719486145171,1.09207128,61190.0,61189.0,0.009229]
[1719486145371,1.41892128,61190.0,61189.0,0.009229]
[1719486145643,1.41892128,61190.0,61189.0,0.196429]
[1719486146421,1.41892128,61190.0,61189.0,0.113029]
[1719486147026,1.09207128,61190.0,61189.0,0.113029]
[1719486147188,1.09207128,61190.0,61189.0,0.40243269]
[1719486147388,1.07217328,61190.0,61189.0,0.192229]
[1719486147589,1.07217328,61190.0,61189.0,0.40243269]
[1719486147796,1.17611328,61190.0,61189.0,0.40243269]
[1719486148016,1.0593959,61190.0,61189.0,0.40243269]
[1719486148251,0.7242059,61190.0,61189.0,0.40243269]
[1719486148475,0.7242059,61190.0,61189.0,0.45552176]
[1719486148476,0.6286059,61190.0,61189.0,0.45552176]
[1719486148812,0.3017559,61190.0,61189.0,0.45552176]
[1719486149157,0.02084621,61196.0,61195.0,0.22020369]
[1719486149354,0.18425521,61196.0,61195.0,0.40150369]
[1719486149600,0.18425521,61196.0,61195.0,0.4285325]
[1719486149811,0.163409,61196.0,61195.0,0.4285325]
[1719486150160,0.163409,61196.0,61195.0,0.4185325]
[1719486150362,0.490227,61196.0,61195.0,0.4285325]
[1719486150540,0.490227,61196.0,61195.0,0.39150369]
[1719486151369,0.590227,61196.0,61195.0,0.39150369]
[1719486151773,0.591227,61196.0,61195.0,0.39250369]
[1719486152695,1.244863,61196.0,61195.0,0.39250369]
[1719486152899,1.244863,61196.0,61195.0,0.21120369]
[1719486153064,1.707894,61196.0,61195.0,0.21120369]
[1719486153490,1.707894,61196.0,61195.0,0.201]
[1719486153686,1.708894,61196.0,61195.0,0.21820369]
[1719486154035,1.707894,61196.0,61195.0,0.21120369]
[1719486154377,1.708894,61196.0,61195.0,0.21820369]
[1719486154600,1.706894,61196.0,61195.0,0.21020369]
[1719486154954,1.712894,61196.0,61195.0,0.21120369]
[1719486155127,1.475013,61196.0,61195.0,0.39330369]
[1719486155328,0.596227,61196.0,61195.0,0.41442406]
[1719486155530,0.590227,61196.0,61195.0,0.41342406]
[1719486155704,0.918045,61196.0,61195.0,0.39230369]
[1719486156324,0.917045,61196.0,61195.0,0.39230369]
[1719486157487,0.918045,61196.0,61195.0,0.39230369]
[1719486157836,0.917045,61196.0,61195.0,0.39230369]
[1719486158287,0.918045,61196.0,61195.0,0.43953406]
[1719486158430,0.918045,61196.0,61195.0,0.44153406]
[1719486158850,0.918045,61196.0,61195.0,0.43953406]
[1719486159253,0.919045,61196.0,61195.0,0.44653406]
[1719486159485,0.919045,61196.0,61195.0,0.40630369]
[1719486166953,0.102,61196.0,61195.0,0.41630369]
[1719486167136,0.102,61196.0,61195.0,0.57864267]
[1719486167137,0.002,61196.0,61195.0,0.57864267]
[1719486168223,0.002,61196.0,61195.0,0.94205467]
[1719486168395,0.002,61196.0,61195.0,1.14205467]
[1719486168803,0.001,61196.0,61195.0,1.13505467]
[1719486169306,0.002,61196.0,61195.0,1.14005467]
[1719486169739,0.001,61196.0,61195.0,1.13505467]
[1719486170128,0.1,61206.0,61205.0,0.219952]
[1719486170306,0.1,61206.0,61205.0,0.39720369]
[1719486170507,0.490923,61214.0,61213.0,0.21020369]
[1719486170717,0.164201,61214.0,61213.0,0.39720369]
[1719486171078,0.00084,61214.0,61213.0,0.39720369]
[1719486171319,0.00084,61214.0,61213.0,0.43692406]
[1719486171522,0.00084,61214.0,61213.0,0.39720369]
[1719486171954,0.00084,61214.0,61213.0,0.55954267]
[1719486173525,0.00084,61214.0,61213.0,0.56254267]
[1719486173733,0.00084,61219.0,61213.0,0.56254267]
[1719486173734,0.00084,61219.0,61218.0,0.39590369]
[1719486173925,0.00084,61219.0,61218.0,0.55824267]
[1719486175090,0.00084,61219.0,61218.0,0.54824267]
[1719486175288,0.00084,61219.0,61218.0,0.55724267]
[1719486175448,0.00084,61219.0,61218.0,0.56724267]
[1719486175848,0.00084,61219.0,61218.0,0.55824267]
[1719486177128,0.00084,61219.0,61218.0,0.56924267]
[1719486177992,0.00084,61219.0,61218.0,0.58324267]
[1719486178437,0.00084,61219.0,61218.0,0.56924267]
[1719486179314,0.00084,61219.0,61218.0,0.58024267]
[1719486179522,0.00084,61219.0,61218.0,0.56924267]
[1719486179919,0.00084,61219.0,61218.0,0.55824267]
[1719486180339,0.00084,61219.0,61218.0,0.57224267]
[1719486181649,0.0264524,61219.0,61218.0,0.57224267]
[1719486182221,0.0264524,61219.0,61218.0,0.31920369]
[1719486182432,0.5164944,61219.0,61218.0,0.31920369]
[1719486182648,0.5164944,61219.0,61218.0,0.33320369]
[1719486182849,0.5164944,61219.0,61218.0,0.23820369]
[1719486183049,0.5164944,61219.0,61218.0,0.22420369]
[1719486183695,0.5164944,61219.0,61218.0,0.23520369]
[1719486183927,0.0264524,61219.0,61218.0,0.61350304]
[1719486184068,0.0264524,61219.0,61218.0,0.60250304]
[1719486184456,0.0264524,61219.0,61218.0,0.61350304]
[1719486186575,0.00084,61219.0,61218.0,0.61350304]
[1719486187398,0.00084,61219.0,61218.0,0.42090369]
[1719486187599,0.00084,61219.0,61218.0,0.41090369]
[1719486188276,0.164187,61219.0,61218.0,0.41090369]
[1719486188713,0.00084,61219.0,61218.0,0.41090369]
[1719486191915,0.00084,61219.0,61218.0,0.42090369]
[1719486192143,0.00084,61219.0,61218.0,0.46299406]
[1719486192854,0.00084,61219.0,61218.0,0.62533304]
[1719486201350,0.00084,61219.0,61218.0,0.61533304]
[1719486201580,0.00084,61219.0,61218.0,0.58324267]
[1719486203298,0.00084,61219.0,61218.0,0.39454267]
[1719486205143,0.164187,61219.0,61218.0,0.39454267]
[1719486205875,0.490882,61219.0,61218.0,0.39454267]
[1719486207387,0.817577,61219.0,61218.0,0.23220369]
[1719486207595,1.224072,61219.0,61218.0,0.23220369]
[1719486208615,0.73319,61219.0,61218.0,0.23220369]
[1719486209607,1.223232,61219.0,61218.0,0.23220369]
[1719486211576,0.816737,61219.0,61218.0,0.23220369]
[1719486216950,0.816737,61219.0,61218.0,0.24220369]
[1719486217150,0.816737,61219.0,61218.0,0.33620369]
[1719486219349,0.490042,61219.0,61218.0,0.33620369]
[1719486220558,0.263339,61222.0,61221.0,0.22020369]
[1719486222579,0.590018,61222.0,61221.0,0.22020369]
[1719486222777,0.590018,61222.0,61221.0,0.21820369]
[1719486223387,0.916697,61222.0,61221.0,0.22520369]
[1719486232285,0.917537,61222.0,61221.0,0.22520369]
[1719486242894,1.013037,61222.0,61221.0,0.22520369]
[1719486255680,0.10084,61222.0,61221.0,0.27545036]
[1719486255886,0.490858,61222.0,61221.0,0.31500369]
[1719486256085,0.917537,61222.0,61221.0,0.31500369]
[1719486258792,0.590858,61222.0,61221.0,0.31500369]
[1719486260867,0.264179,61222.0,61221.0,0.47734267]
[1719486261066,0.00084,61222.0,61221.0,0.58004267]
[1719486261866,0.00084,61222.0,61221.0,0.78004267]
[1719486262078,0.00084,61222.0,61221.0,0.58004267]
[1719486263422,0.00084,61222.0,61221.0,0.77304267]
[1719486263656,0.00084,61222.0,61221.0,0.76504267]
[1719486263960,0.00084,61222.0,61221.0,0.77904267]
[1719486264125,0.00084,61222.0,61221.0,1.17938467]
[1719486264390,0.00084,61222.0,61221.0,1.01604267]
[1719486265338,0.00084,61222.0,61221.0,1.17938467]
[1719486265906,0.259651,61233.0,61232.0,0.106552]
[1719486265907,0.06448088,61233.0,61232.0,0.106552]
[1719486266284,0.163312,61233.0,61232.0,0.39630369]
[1719486266407,0.258812,61233.0,61232.0,0.38630369]
[1719486267002,0.163312,61233.0,61232.0,0.38630369]
[1719486267169,0.163303,61236.0,61235.0,0.21020369]
[1719486267372,0.163303,61236.0,61235.0,0.22020369]
[1719486267595,0.12751132,61242.0,61241.0,0.22020369]
[1719486267596,0.422073,61242.0,61241.0,0.22020369]
[1719486267799,0.326573,61242.0,61241.0,0.22020369]
[1719486268050,0.0955,61242.0,61241.0,0.26101406]
[1719486268267,0.4713,61245.0,61242.0,0.22020369]
[1719486268268,0.163284,61243.0,61242.0,0.22020369]
[1719486268478,0.634579,61245.0,61244.0,0.22020369]
[1719486268627,0.258779,61245.0,61244.0,0.22020369]
[1719486269212,0.1955,61245.0,61244.0,0.22020369]
[1719486269473,0.358778,61245.0,61244.0,0.22020369]
[1719486269875,0.263278,61245.0,61244.0,0.22020369]
[1719486270076,0.1,61245.0,61244.0,0.22020369]
[1719486270280,0.163274,61247.0,61246.0,0.21020369]
[1719486270479,0.506269,61251.0,61249.0,0.009952]
[1719486270730,0.259605,61250.0,61249.0,0.21020369]
[1719486270941,0.586135,61250.0,61249.0,0.21020369]
[1719486271527,0.586135,61250.0,61249.0,0.58946304]
[1719486271528,0.00084,61250.0,61249.0,0.58946304]
[1719486272074,0.00084,61250.0,61249.0,0.57946304]
[1719486272276,0.00084,61250.0,61249.0,0.59146304]
[1719486272437,0.00084,61250.0,61249.0,0.57044267]
[1719486272634,0.00084,61250.0,61249.0,0.35023898]
[1719486272966,0.00084,61250.0,61249.0,0.57044267]
[1719486274189,0.00084,61250.0,61249.0,0.57004035]
[1719486277714,0.00084,61250.0,61249.0,0.56004035]
[1719486278227,0.00084,61250.0,61249.0,0.48014267]
[1719486278415,0.00084,61250.0,61249.0,0.37654267]
[1719486278849,0.00084,61250.0,61249.0,0.38654267]
[1719486279057,0.00084,61250.0,61249.0,0.37654267]
[1719486279308,0.00084,61250.0,61249.0,0.21420369]
[1719486283585,0.164105,61250.0,61249.0,0.21420369]
[1719486284466,0.164105,61250.0,61249.0,0.22420369]
[1719486285236,0.00084,61250.0,61249.0,0.22420369]
[1719486288869,0.00084,61250.0,61249.0,0.42712304]
[1719486289081,0.00084,61250.0,61249.0,0.52672304]
[1719486289905,0.00084,61250.0,61249.0,0.37654267]
[1719486290112,0.163261,61252.0,61249.0,0.21420369]
[1719486290253,0.585282,61252.0,61251.0,0.21020369]
[1719486290474,0.258761,61252.0,61251.0,0.22020369]
[1719486290679,0.49812,61258.0,61257.0,0.21020369]
[1719486290879,0.59362,61258.0,61257.0,0.21020369]
[1719486292286,0.59362,61258.0,61257.0,0.21120369]
[1719486292512,0.69362,61258.0,61257.0,0.21120369]
[1719486293551,0.69362,61258.0,61257.0,0.21220369]
[1719486294073,0.77322,61258.0,61257.0,0.21220369]
[1719486294741,0.69362,61258.0,61257.0,0.21220369]
[1719486299587,1.020107,61258.0,61257.0,0.21220369]
[1719486301308,1.020107,61258.0,61257.0,0.002]
[1719486301699,1.020107,61258.0,61257.0,0.21220369]
[1719486302135,0.924607,61258.0,61257.0,0.21220369]
[1719486302296,1.020107,61258.0,61257.0,0.21220369]
[1719486305653,1.346594,61258.0,61257.0,0.21220369]
[1719486305861,1.346594,61258.0,61257.0,0.202]
[1719486305862,1.427994,61258.0,61257.0,0.202]
[1719486307666,1.427994,61258.0,61257.0,0.21220369]
[1719486309688,1.44868664,61258.0,61257.0,0.21220369]
[1719486311486,1.35318664,61258.0,61257.0,0.21220369]
[1719486311729,1.36728664,61258.0,61257.0,0.23342406]
[1719486311928,0.924607,61258.0,61257.0,0.23342406]
[1719486312245,1.020107,61258.0,61257.0,0.23342406]
[1719486313940,1.020107,61258.0,61257.0,0.21220369]
[1719486314589,1.16708194,61258.0,61257.0,0.21220369]
[1719486314758,1.16710679,61258.0,61257.0,0.21220369]
[1719486315018,1.020107,61258.0,61257.0,0.21220369]
[1719486319097,1.346594,61258.0,61257.0,0.21220369]
[1719486319409,1.429694,61258.0,61257.0,0.21220369]
[1719486320487,1.334194,61258.0,61257.0,0.21220369]
[1719486320785,1.429694,61258.0,61257.0,0.21220369]
[1719486321545,1.429694,61258.0,61257.0,0.202]
[1719486321742,1.433894,61258.0,61257.0,0.202]
[1719486321976,1.338394,61258.0,61257.0,0.21220369]
[1719486322183,1.433894,61258.0,61257.0,0.202]
[1719486322962,1.429694,61258.0,61257.0,0.21220369]
[1719486323164,1.346594,61258.0,61257.0,0.21220369]
[1719486323845,1.251094,61258.0,61257.0,0.21220369]
[1719486324046,1.346594,61258.0,61257.0,0.23342406]
[1719486324462,1.251094,61258.0,61257.0,0.23342406]
[1719486324716,1.020107,61258.0,61257.0,0.23342406]
[1719486324886,0.00839,61258.0,61257.0,0.22220369]
[1719486325089,0.00839,61258.0,61257.0,0.64274613]
[1719486325875,0.00839,61258.0,61257.0,0.64074613]
[1719486326197,0.00839,61258.0,61257.0,0.55944267]
[1719486326964,0.00839,61258.0,61257.0,0.56244267]
[1719486328864,0.00839,61258.0,61257.0,0.57444267]
[1719486329216,0.00839,61258.0,61257.0,0.57144267]
[1719486329756,0.00839,61258.0,61257.0,0.58444267]
[1719486330380,0.00839,61258.0,61257.0,1.14768867]
[1719486330679,0.00839,61258.0,61257.0,1.80067467]
[1719486330876,0.00084,61266.0,61265.0,0.22020369]
[1719486331113,0.00084,61266.0,61265.0,0.56054267]
[1719486331438,0.00084,61266.0,61265.0,0.56638688]
[1719486332748,0.00084,61266.0,61265.0,0.34618319]
[1719486332951,0.00084,61266.0,61265.0,0.55638688]
[1719486333177,0.164062,61266.0,61265.0,0.2160479]
[1719486333373,0.490507,61266.0,61265.0,0.2160479]
[1719486333575,0.816952,61266.0,61265.0,0.2160479]
[1719486333774,0.490507,61266.0,61265.0,0.2350479]
[1719486333985,0.816952,61266.0,61265.0,0.2350479]
[1719486334145,1.243397,61266.0,61265.0,0.02484421]
[1719486334347,1.332197,61266.0,61265.0,0.01584421]
[1719486334544,1.332197,61266.0,61265.0,0.01]
[1719486334745,1.332197,61266.0,61265.0,0.02]
[1719486335767,1.142575,61265.0,61264.0,0.2]
[1719486335972,1.242575,61265.0,61264.0,0.2]
[1719486336379,0.816177,61261.0,61260.0,0.2]
[1719486336583,0.489754,61255.0,61253.0,0.2]
[1719486336784,1.14276,61255.0,61253.0,0.2]
[1719486337101,1.14276,61255.0,61254.0,0.200924]
[1719486337102,1.24276,61255.0,61254.0,0.200924]
[1719486338313,1.24276,61255.0,61254.0,0.209924]
[1719486338844,1.24276,61255.0,61254.0,0.22012769]
[1719486339234,1.33826,61255.0,61254.0,0.22012769]
[1719486339458,1.33826,61255.0,61254.0,0.209924]
[1719486339665,1.33826,61255.0,61254.0,0.22912769]
[1719486341165,1.24276,61255.0,61254.0,0.22912769]
[1719486341368,1.33826,61255.0,61254.0,0.22912769]
[1719486342708,0.589754,61255.0,61254.0,0.40742769]
[1719486342919,0.685254,61255.0,61254.0,0.45730081]
[1719486343299,0.685254,61255.0,61254.0,0.40742769]
[1719486343705,0.71085431,61255.0,61254.0,0.40742769]
[1719486344309,1.03735731,61255.0,61254.0,0.40742769]
[1719486347883,1.03735731,61255.0,61254.0,0.41326004]
[1719486348449,1.03735731,61255.0,61254.0,0.33606004]
[1719486351195,1.36386031,61255.0,61254.0,0.02475635]
[1719486351415,1.37356031,61255.0,61254.0,0.02475635]
[1719486351644,1.37356031,61255.0,61254.0,0.218924]
[1719486351811,3.15952531,61255.0,61254.0,0.02475635]
[1719486352131,3.41665108,61255.0,61254.0,0.018924]
[1719486352493,2.94340631,61255.0,61254.0,0.018924]
[1719486352961,3.26990931,61255.0,61254.0,0.018924]
[1719486353119,3.0901189,61255.0,61254.0,0.018924]
[1719486353323,2.8110229,61255.0,61254.0,0.018924]
[1719486353575,2.2144269,61255.0,61254.0,0.018924]
[1719486353780,1.9854769,61255.0,61254.0,0.218924]
[1719486353975,1.8697769,61255.0,61254.0,0.22912769]
[1719486354181,1.83371772,61255.0,61254.0,0.218924]
[1719486354389,1.80971772,61255.0,61254.0,0.218924]
[1719486354600,1.80971772,61255.0,61254.0,0.22912769]
[1719486354601,1.26836031,61255.0,61254.0,0.22912769]
[1719486354764,1.36386031,61255.0,61254.0,0.40962769]
[1719486354972,1.26836031,61255.0,61254.0,0.41546489]
[1719486355177,1.36386031,61255.0,61254.0,0.41546489]
[1719486356294,1.36386031,61255.0,61254.0,0.2052612]
[1719486356498,1.36386031,61255.0,61254.0,0.41546489]
[1719486356700,1.36386031,61255.0,61254.0,0.40962769]
[1719486356842,1.36386031,61255.0,61254.0,0.41546489]
[1719486357302,1.36386031,61255.0,61254.0,0.33746489]
[1719486359359,1.20060931,61255.0,61254.0,0.33746489]
[1719486359561,1.36386031,61255.0,61254.0,0.33746489]
[1719486360676,1.36386031,61255.0,61254.0,0.2247612]
[1719486363916,1.36386031,61255.0,61254.0,0.0247612]
[1719486364066,1.71358131,61255.0,61254.0,0.0247612]
[1719486364272,1.71358131,61255.0,61254.0,0.018924]
[1719486364467,2.04008431,61255.0,61254.0,0.018924]
[1719486364992,2.20241802,61255.0,61254.0,0.018924]
[1719486365195,0.407162,61244.0,61242.0,0.2]
[1719486365392,0.58535,61243.0,61242.0,0.2]
[1719486365616,1.603268,61243.0,61242.0,0.2]
[1719486366020,0.816457,61240.0,61239.0,0.2]
[1719486366178,1.33854,61240.0,61239.0,0.2]
[1719486366711,0.816472,61239.0,61238.0,0.2]
[1719486366916,1.011972,61239.0,61238.0,0.2]
[1719486367249,0.16232804,61233.0,61232.0,0.2]
[1719486367436,1.01107004,61233.0,61232.0,0.2]
[1719486367590,1.33769104,61233.0,61232.0,0.2]
[1719486368668,1.48099104,61233.0,61232.0,0.2]
[1719486370021,1.48099104,61233.0,61232.0,0.227]
[1719486370022,1.48299104,61233.0,61232.0,0.227]
[1719486370742,1.48299104,61233.0,61232.0,0.027]
[1719486371024,1.48299104,61233.0,61232.0,0.23720369]
[1719486372187,1.48299104,61233.0,61232.0,0.21160352]
[1719486372412,1.48299104,61233.0,61232.0,0.20139983]
[1719486373424,1.48299104,61233.0,61232.0,0.21160352]
[1719486374203,1.48299104,61233.0,61232.0,0.20139983]
[1719486375016,1.48299104,61233.0,61232.0,0.21160352]
[1719486375454,1.48299104,61233.0,61232.0,0.28920352]
[1719486375830,1.48299104,61233.0,61232.0,0.21160352]
[1719486376356,1.48299104,61233.0,61232.0,0.20139983]
[1719486376555,1.80961204,61233.0,61232.0,0.20139983]
[1719486376767,1.80961204,61233.0,61232.0,0.00139983]
[1719486376768,1.81321204,61233.0,61232.0,0.00139983]
[1719486376966,1.89191204,61233.0,61232.0,0.00139983]
[1719486377747,2.13424304,61233.0,61232.0,0.00139983]
[1719486378205,2.46086404,61233.0,61232.0,0.00139983]
[1719486378406,2.62319775,61233.0,61228.0,0.2]
[1719486378616,1.469889,61229.0,61228.0,0.2]
[1719486378793,2.663698,61229.0,61228.0,0.2]
[1719486379005,2.401711,61229.0,61228.0,0.2]
[1719486380067,2.403711,61229.0,61228.0,0.2]
[1719486380857,2.405711,61229.0,61228.0,0.2]
[1719486381858,2.355578,61229.0,61228.0,0.2]
[1719486382064,1.143341,61224.0,61223.0,0.0933]
[1719486382265,1.243341,61224.0,61223.0,0.30350369]
[1719486382483,1.143341,61224.0,61223.0,0.30350369]
[1719486382691,1.143341,61224.0,61223.0,0.38840369]
[1719486382947,1.143341,61224.0,61223.0,0.37840369]
[1719486383140,1.143341,61224.0,61223.0,0.39014934]
[1719486383598,1.143341,61224.0,61223.0,0.40414934]
[1719486383766,1.144341,61224.0,61223.0,0.40814934]
[1719486383968,1.143341,61224.0,61223.0,0.39414934]
[1719486384587,1.144341,61224.0,61223.0,0.39814934]
[1719486385655,1.144341,61224.0,61223.0,0.39414934]
[1719486386010,1.145341,61224.0,61223.0,0.39814934]